[Event "Titled Tuesday Blitz May 9 Early 2023"]
[White "Costachi, Mihnea"]
[Black "Wieczorek, Oskar"]
[WhiteFideId "1217518"]
[BlackFideId "1133950"]
[WhiteElo "2456"]
[BlackElo "2418"]
[Result "1-0"]
[Round "05"]
[TimeControl "180+2"]
[Date "2023.05.09"]
[WhiteClock "0:01:31"]
[BlackClock "0:00:00"]

1. Nc3 {[%clk 0:03:00]}  c5 {[%clk 0:02:57]} 2. Nf3 {[%clk 0:03:00]}  g6 {[%clk 0:02:57]} 3. g3 {[%clk 0:02:59]}  Bg7 {[%clk 0:02:57]} 4. Bg2 {[%clk 0:03:00]}  Nc6 {[%clk 0:02:57]} 5. O-O {[%clk 0:03:01]}  e6 {[%clk 0:02:55]} 6. e4 {[%clk 0:03:00]}  Nge7 {[%clk 0:02:55]} 7. d3 {[%clk 0:03:00]}  d6 {[%clk 0:02:51]} 8. Be3 {[%clk 0:03:00]}  Nd4 {[%clk 0:02:51]} 9. Qd2 {[%clk 0:02:58]}  h5 {[%clk 0:02:46]} 10. Rab1 {[%clk 0:02:58]}  Nec6 {[%clk 0:02:40]} 11. Ne2 {[%clk 0:02:57]}  Nxf3+ {[%clk 0:02:31]} 12. Bxf3 {[%clk 0:02:57]}  h4 {[%clk 0:02:32]} 13. Bg2 {[%clk 0:02:55]}  h3 {[%clk 0:02:32]} 14. Bh1 {[%clk 0:02:55]}  e5 {[%clk 0:02:30]} 15. c3 {[%clk 0:02:52]}  Bg4 {[%clk 0:02:29]} 16. f3 {[%clk 0:02:52]}  Be6 {[%clk 0:02:29]} 17. b4 {[%clk 0:02:52]}  cxb4 {[%clk 0:02:01]} 18. cxb4 {[%clk 0:02:53]}  a6 {[%clk 0:02:02]} 19. f4 {[%clk 0:02:48]}  Qd7 {[%clk 0:01:49]} 20. d4 {[%clk 0:02:47]}  Bc4 {[%clk 0:01:45]} 21. d5 {[%clk 0:02:37]}  Ne7 {[%clk 0:01:41]} 22. Bf3 {[%clk 0:02:32]}  b5 {[%clk 0:01:38]} 23. Rf2 {[%clk 0:02:28]}  O-O {[%clk 0:01:23]} 24. fxe5 {[%clk 0:02:28]}  Bxe5 {[%clk 0:01:22]} 25. Bd4 {[%clk 0:02:27]}  Rac8 {[%clk 0:00:52]} 26. Bxe5 {[%clk 0:02:21]}  dxe5 {[%clk 0:00:52]} 27. Kh1 {[%clk 0:02:18]}  Rc7 {[%clk 0:00:35]} 28. Ng1 {[%clk 0:02:17]}  Nc8 {[%clk 0:00:29]} 29. Qh6 {[%clk 0:02:17]}  Nd6 {[%clk 0:00:29]} 30. Nxh3 {[%clk 0:02:17]}  f6 {[%clk 0:00:16]} 31. Qxg6+ {[%clk 0:02:17]}  Qg7 {[%clk 0:00:16]} 32. Qxg7+ {[%clk 0:02:08]}  Kxg7 {[%clk 0:00:16]} 33. g4 {[%clk 0:02:08]}  Bd3 {[%clk 0:00:16]} 34. Re1 {[%clk 0:02:07]}  Rc4 {[%clk 0:00:16]} 35. g5 {[%clk 0:02:08]}  Bxe4 {[%clk 0:00:11]} 36. gxf6+ {[%clk 0:02:06]}  Rxf6 {[%clk 0:00:12]} 37. Bxe4 {[%clk 0:02:01]}  Nxe4 {[%clk 0:00:13]} 38. Rxf6 {[%clk 0:02:00]}  Kxf6 {[%clk 0:00:13]} 39. a3 {[%clk 0:01:58]}  Rd4 {[%clk 0:00:12]} 40. Kg2 {[%clk 0:01:57]}  Nd6 {[%clk 0:00:11]} 41. Nf2 {[%clk 0:01:57]}  Rxd5 {[%clk 0:00:10]} 42. Ng4+ {[%clk 0:01:57]}  Ke6 {[%clk 0:00:10]} 43. h4 {[%clk 0:01:57]}  Nc4 {[%clk 0:00:10]} 44. h5 {[%clk 0:01:56]}  Rd3 {[%clk 0:00:09]} 45. h6 {[%clk 0:01:54]}  Rd8 {[%clk 0:00:08]} 46. Rf1 {[%clk 0:01:53]}  Rg8 {[%clk 0:00:05]} 47. Rf6+ {[%clk 0:01:38]}  Ke7 {[%clk 0:00:05]} 48. Kh3 {[%clk 0:01:35]}  Rxg4 {[%clk 0:00:05]} 49. h7 {[%clk 0:01:35]}  Rg1 {[%clk 0:00:00]} 50. Rf2 {[%clk 0:01:31]} 1-0


[Site "https://www.chess.com"]

[Event "Titled Tuesday Blitz May 9 Early 2023"]
[White "Ibarra Jerez, Jose Carlos"]
[Black "Girya, Olga"]
[WhiteFideId "2226332"]
[BlackFideId "4195752"]
[WhiteElo "2638"]
[BlackElo "2263"]
[Result "1-0"]
[Round "05"]
[TimeControl "180+2"]
[Date "2023.05.09"]
[WhiteClock "0:00:13"]
[BlackClock "0:00:00"]

1. e4 {[%clk 0:02:59]}  e5 {[%clk 0:02:59]} 2. Nf3 {[%clk 0:02:58]}  Nc6 {[%clk 0:03:00]} 3. Nc3 {[%clk 0:02:59]}  Nf6 {[%clk 0:02:59]} 4. h3 {[%clk 0:02:59]}  Bb4 {[%clk 0:02:43]} 5. Nd5 {[%clk 0:02:59]}  Nxd5 {[%clk 0:02:41]} 6. exd5 {[%clk 0:02:59]}  e4 {[%clk 0:02:38]} 7. dxc6 {[%clk 0:02:59]}  exf3 {[%clk 0:02:38]} 8. Qxf3 {[%clk 0:02:59]}  dxc6 {[%clk 0:02:37]} 9. Bc4 {[%clk 0:02:58]}  O-O {[%clk 0:02:35]} 10. O-O {[%clk 0:02:55]}  Qh4 {[%clk 0:02:29]} 11. d3 {[%clk 0:02:51]}  Bd7 {[%clk 0:02:08]} 12. Be3 {[%clk 0:02:37]}  a5 {[%clk 0:01:53]} 13. a3 {[%clk 0:02:37]}  Bd6 {[%clk 0:01:53]} 14. Rae1 {[%clk 0:02:34]}  Rae8 {[%clk 0:01:48]} 15. Bd2 {[%clk 0:02:30]}  a4 {[%clk 0:01:24]} 16. Rxe8 {[%clk 0:02:29]}  Bxe8 {[%clk 0:01:24]} 17. Re1 {[%clk 0:02:27]}  Bd7 {[%clk 0:01:23]} 18. Re4 {[%clk 0:02:24]}  Qd8 {[%clk 0:01:22]} 19. Bc3 {[%clk 0:02:21]}  Qg5 {[%clk 0:01:07]} 20. Re1 {[%clk 0:01:56]}  h6 {[%clk 0:01:01]} 21. Bd4 {[%clk 0:01:30]}  Qf5 {[%clk 0:00:53]} 22. Qxf5 {[%clk 0:01:20]}  Bxf5 {[%clk 0:00:54]} 23. h4 {[%clk 0:00:58]}  h5 {[%clk 0:00:50]} 24. g3 {[%clk 0:00:55]}  Bd7 {[%clk 0:00:48]} 25. Kg2 {[%clk 0:00:50]}  Re8 {[%clk 0:00:49]} 26. Be3 {[%clk 0:00:50]}  b5 {[%clk 0:00:46]} 27. Ba2 {[%clk 0:00:50]}  c5 {[%clk 0:00:47]} 28. Bd5 {[%clk 0:00:42]}  Re5 {[%clk 0:00:46]} 29. Bf3 {[%clk 0:00:42]}  f6 {[%clk 0:00:42]} 30. Rd1 {[%clk 0:00:38]}  Bg4 {[%clk 0:00:30]} 31. d4 {[%clk 0:00:25]}  cxd4 {[%clk 0:00:28]} 32. Rxd4 {[%clk 0:00:19]}  Bxf3+ {[%clk 0:00:24]} 33. Kxf3 {[%clk 0:00:20]}  Bc5 {[%clk 0:00:16]} 34. Rd8+ {[%clk 0:00:20]}  Kf7 {[%clk 0:00:06]} 35. Bf4 {[%clk 0:00:20]}  Re7 {[%clk 0:00:01]} 36. Rd5 {[%clk 0:00:20]}  Bb6 {[%clk 0:00:01]} 37. Rxb5 {[%clk 0:00:17]}  g6 {[%clk 0:00:01]} 38. Rb4 {[%clk 0:00:15]}  Rd7 {[%clk 0:00:01]} 39. Rxa4 {[%clk 0:00:14]}  Rd1 {[%clk 0:00:01]} 40. Rc4 {[%clk 0:00:13]}  Rf1 {[%clk 0:00:01]} 41. Be3 {[%clk 0:00:13]}  Rb1 {[%clk 0:00:02]} 42. b3 {[%clk 0:00:12]}  Ra1 {[%clk 0:00:01]} 43. a4 {[%clk 0:00:12]}  Ke6 {[%clk 0:00:01]} 44. Bxb6 {[%clk 0:00:12]}  cxb6 {[%clk 0:00:01]} 45. Rc6+ {[%clk 0:00:12]}  Ke5 {[%clk 0:00:00]} 46. Rxb6 {[%clk 0:00:13]} 1-0


[Site "https://www.chess.com"]

[Event "Titled Tuesday Blitz May 9 Early 2023"]
[White "Tasev, Dejan"]
[Black "demon64fields"]
[WhiteFideId "936618"]
[WhiteElo "2244"]
[BlackElo "2893"]
[Result "0-1"]
[Round "05"]
[TimeControl "180+2"]
[Date "2023.05.09"]
[WhiteClock "0:00:04"]
[BlackClock "0:00:10"]

1. e4 {[%clk 0:03:00]}  e6 {[%clk 0:02:59]} 2. d4 {[%clk 0:03:00]}  d5 {[%clk 0:02:59]} 3. Nc3 {[%clk 0:03:00]}  Bb4 {[%clk 0:03:00]} 4. exd5 {[%clk 0:03:00]}  exd5 {[%clk 0:03:00]} 5. Bd3 {[%clk 0:02:59]}  Ne7 {[%clk 0:03:01]} 6. Qf3 {[%clk 0:02:59]}  Nbc6 {[%clk 0:03:00]} 7. Ne2 {[%clk 0:02:57]}  Be6 {[%clk 0:03:00]} 8. h3 {[%clk 0:02:58]}  Qd7 {[%clk 0:03:01]} 9. Be3 {[%clk 0:02:57]}  O-O-O {[%clk 0:03:01]} 10. a3 {[%clk 0:02:57]}  Bxc3+ {[%clk 0:03:01]} 11. bxc3 {[%clk 0:02:56]}  Bf5 {[%clk 0:03:01]} 12. Ng3 {[%clk 0:02:51]}  Bxd3 {[%clk 0:02:52]} 13. cxd3 {[%clk 0:02:51]}  h6 {[%clk 0:02:50]} 14. O-O {[%clk 0:02:50]}  f5 {[%clk 0:02:49]} 15. Rab1 {[%clk 0:02:45]}  g5 {[%clk 0:02:47]} 16. Bd2 {[%clk 0:02:41]}  f4 {[%clk 0:02:21]} 17. Ne2 {[%clk 0:02:36]}  h5 {[%clk 0:02:20]} 18. h4 {[%clk 0:02:19]}  gxh4 {[%clk 0:02:17]} 19. Nxf4 {[%clk 0:02:15]}  Rdf8 {[%clk 0:02:13]} 20. Qh3 {[%clk 0:02:10]}  Qg4 {[%clk 0:02:13]} 21. f3 {[%clk 0:01:50]}  Qxh3 {[%clk 0:02:03]} 22. Nxh3 {[%clk 0:01:50]}  Nf5 {[%clk 0:01:54]} 23. Ng5 {[%clk 0:01:38]}  Rhg8 {[%clk 0:01:51]} 24. Rfe1 {[%clk 0:01:36]}  b6 {[%clk 0:01:45]} 25. Re6 {[%clk 0:01:30]}  Kd7 {[%clk 0:01:41]} 26. Rbe1 {[%clk 0:01:26]}  Rg7 {[%clk 0:01:35]} 27. f4 {[%clk 0:01:19]}  a5 {[%clk 0:01:19]} 28. a4 {[%clk 0:01:18]}  Re7 {[%clk 0:01:04]} 29. Rxe7+ {[%clk 0:01:11]}  Ncxe7 {[%clk 0:01:05]} 30. Kf2 {[%clk 0:01:04]}  c6 {[%clk 0:01:03]} 31. Kf3 {[%clk 0:01:03]}  b5 {[%clk 0:01:02]} 32. Ne6 {[%clk 0:00:51]}  Rg8 {[%clk 0:01:02]} 33. Nc5+ {[%clk 0:00:51]}  Kc7 {[%clk 0:01:01]} 34. axb5 {[%clk 0:00:50]}  cxb5 {[%clk 0:01:02]} 35. Kf2 {[%clk 0:00:48]}  a4 {[%clk 0:00:59]} 36. c4 {[%clk 0:00:43]}  bxc4 {[%clk 0:00:42]} 37. dxc4 {[%clk 0:00:42]}  dxc4 {[%clk 0:00:43]} 38. Nxa4 {[%clk 0:00:33]}  Ra8 {[%clk 0:00:33]} 39. Nc3 {[%clk 0:00:29]}  Kd7 {[%clk 0:00:32]} 40. d5 {[%clk 0:00:25]}  Rb8 {[%clk 0:00:30]} 41. Ne4 {[%clk 0:00:17]}  Rb2 {[%clk 0:00:29]} 42. Kf1 {[%clk 0:00:16]}  Nxd5 {[%clk 0:00:28]} 43. Bc1 {[%clk 0:00:13]}  Rc2 {[%clk 0:00:25]} 44. Nc5+ {[%clk 0:00:13]}  Kc6 {[%clk 0:00:25]} 45. Ne6 {[%clk 0:00:12]}  Ng3+ {[%clk 0:00:24]} 46. Kg1 {[%clk 0:00:12]}  Rxc1 {[%clk 0:00:23]} 47. Nd4+ {[%clk 0:00:10]}  Kc5 {[%clk 0:00:23]} 48. Rxc1 {[%clk 0:00:11]}  Kxd4 {[%clk 0:00:23]} 49. Rd1+ {[%clk 0:00:12]}  Ke4 {[%clk 0:00:23]} 50. Kf2 {[%clk 0:00:11]}  Nxf4 {[%clk 0:00:22]} 51. Rd8 {[%clk 0:00:11]}  Nf5 {[%clk 0:00:20]} 52. Re8+ {[%clk 0:00:10]}  Kd5 {[%clk 0:00:19]} 53. Kf3 {[%clk 0:00:09]}  Nd3 {[%clk 0:00:19]} 54. Rc8 {[%clk 0:00:09]}  Nd6 {[%clk 0:00:19]} 55. Ra8 {[%clk 0:00:08]}  c3 {[%clk 0:00:16]} 56. Ke3 {[%clk 0:00:08]}  Nb4 {[%clk 0:00:15]} 57. Ke2 {[%clk 0:00:06]}  Nc4 {[%clk 0:00:11]} 58. Rd8+ {[%clk 0:00:05]}  Kc5 {[%clk 0:00:10]} 59. Rc8+ {[%clk 0:00:05]}  Kb5 {[%clk 0:00:10]} 60. Kd1 {[%clk 0:00:04]}  c2+ {[%clk 0:00:09]} 61. Kc1 {[%clk 0:00:04]}  Nd3+ {[%clk 0:00:10]} 62. Kxc2 {[%clk 0:00:04]}  Ne1+ {[%clk 0:00:08]} 63. Kc3 {[%clk 0:00:05]}  Ne3 {[%clk 0:00:08]} 64. Rb8+ {[%clk 0:00:05]}  Kc6 {[%clk 0:00:08]} 65. Rc8+ {[%clk 0:00:05]}  Kd7 {[%clk 0:00:08]} 66. Rh8 {[%clk 0:00:06]}  Nd5+ {[%clk 0:00:08]} 67. Kd4 {[%clk 0:00:06]}  Nf6 {[%clk 0:00:08]} 68. Ke5 {[%clk 0:00:06]}  Ke7 {[%clk 0:00:08]} 69. Kf5 {[%clk 0:00:06]}  Nxg2 {[%clk 0:00:08]} 70. Ra8 {[%clk 0:00:06]}  Nd5 {[%clk 0:00:07]} 71. Ra7+ {[%clk 0:00:06]}  Kd6 {[%clk 0:00:07]} 72. Rh7 {[%clk 0:00:06]}  Ndf4 {[%clk 0:00:07]} 73. Rh6+ {[%clk 0:00:06]}  Kd5 {[%clk 0:00:07]} 74. Rh8 {[%clk 0:00:06]}  h3 {[%clk 0:00:08]} 75. Rd8+ {[%clk 0:00:06]}  Kc4 {[%clk 0:00:08]} 76. Ra8 {[%clk 0:00:07]}  Kd3 {[%clk 0:00:08]} 77. Ra1 {[%clk 0:00:08]}  Ke2 {[%clk 0:00:08]} 78. Ke4 {[%clk 0:00:07]}  Kf2 {[%clk 0:00:09]} 79. Ra2+ {[%clk 0:00:08]}  Ne2 {[%clk 0:00:09]} 80. Kd3 {[%clk 0:00:07]}  Nf4+ {[%clk 0:00:09]} 81. Ke4 {[%clk 0:00:04]}  h2 {[%clk 0:00:10]} 0-1


[Site "https://www.chess.com"]

[Event "Titled Tuesday Blitz May 9 Early 2023"]
[White "Ambartsumova, Karina"]
[Black "Zhigalko, Sergei"]
[WhiteFideId "4166299"]
[BlackFideId "13502956"]
[WhiteElo "2240"]
[BlackElo "2626"]
[Result "0-1"]
[Round "05"]
[TimeControl "180+2"]
[Date "2023.05.09"]
[WhiteClock "0:00:00"]
[BlackClock "0:00:02"]

1. d4 {[%clk 0:02:59]}  Nf6 {[%clk 0:03:00]} 2. Nf3 {[%clk 0:02:57]}  e6 {[%clk 0:03:00]} 3. c4 {[%clk 0:02:56]}  b6 {[%clk 0:03:01]} 4. g3 {[%clk 0:02:56]}  Ba6 {[%clk 0:03:01]} 5. Qc2 {[%clk 0:02:55]}  Bb4+ {[%clk 0:03:00]} 6. Bd2 {[%clk 0:02:49]}  Be7 {[%clk 0:02:58]} 7. Bg2 {[%clk 0:02:49]}  O-O {[%clk 0:02:57]} 8. O-O {[%clk 0:02:47]}  c6 {[%clk 0:02:56]} 9. Bf4 {[%clk 0:02:38]}  d5 {[%clk 0:02:56]} 10. Nbd2 {[%clk 0:02:38]}  Nbd7 {[%clk 0:02:54]} 11. Ne5 {[%clk 0:02:31]}  Rc8 {[%clk 0:02:53]} 12. Rfe1 {[%clk 0:02:15]}  Nxe5 {[%clk 0:02:42]} 13. Bxe5 {[%clk 0:02:07]}  Bb4 {[%clk 0:02:19]} 14. cxd5 {[%clk 0:01:37]}  cxd5 {[%clk 0:02:17]} 15. Qd1 {[%clk 0:01:37]}  Ne4 {[%clk 0:01:11]} 16. Bxe4 {[%clk 0:01:26]}  dxe4 {[%clk 0:01:11]} 17. a3 {[%clk 0:01:25]}  Bxd2 {[%clk 0:00:54]} 18. Qxd2 {[%clk 0:01:26]}  Qd5 {[%clk 0:00:50]} 19. Bf4 {[%clk 0:01:17]}  Rfd8 {[%clk 0:00:39]} 20. Red1 {[%clk 0:00:55]}  h6 {[%clk 0:00:33]} 21. Be3 {[%clk 0:00:46]}  Qh5 {[%clk 0:00:30]} 22. Re1 {[%clk 0:00:31]}  e5 {[%clk 0:00:30]} 23. d5 {[%clk 0:00:31]}  f5 {[%clk 0:00:23]} 24. d6 {[%clk 0:00:29]}  Qg6 {[%clk 0:00:16]} 25. Qd5+ {[%clk 0:00:21]}  Kh7 {[%clk 0:00:16]} 26. d7 {[%clk 0:00:10]}  Rc7 {[%clk 0:00:16]} 27. Qxe5 {[%clk 0:00:10]}  Rcxd7 {[%clk 0:00:13]} 28. Rac1 {[%clk 0:00:10]}  Qg4 {[%clk 0:00:11]} 29. Rc7 {[%clk 0:00:06]}  Rd1 {[%clk 0:00:09]} 30. Rc1 {[%clk 0:00:04]}  Rxc1 {[%clk 0:00:05]} 31. Rxc1 {[%clk 0:00:04]}  Bxe2 {[%clk 0:00:05]} 32. Qf4 {[%clk 0:00:04]}  Qg6 {[%clk 0:00:04]} 33. h4 {[%clk 0:00:03]}  Bf3 {[%clk 0:00:04]} 34. Kh2 {[%clk 0:00:04]}  Rd7 {[%clk 0:00:04]} 35. Re1 {[%clk 0:00:04]}  Qe6 {[%clk 0:00:03]} 36. Bd2 {[%clk 0:00:04]}  Qd6 {[%clk 0:00:03]} 37. Bc3 {[%clk 0:00:04]}  Qxf4 {[%clk 0:00:03]} 38. gxf4 {[%clk 0:00:04]}  Rd3 {[%clk 0:00:03]} 39. Rc1 {[%clk 0:00:04]}  Bg4 {[%clk 0:00:03]} 40. Kg2 {[%clk 0:00:03]}  Bf3+ {[%clk 0:00:03]} 41. Kh2 {[%clk 0:00:04]}  Bg4 {[%clk 0:00:03]} 42. Kg2 {[%clk 0:00:04]}  Bh3+ {[%clk 0:00:04]} 43. Kh2 {[%clk 0:00:04]}  g5 {[%clk 0:00:03]} 44. fxg5 {[%clk 0:00:04]}  hxg5 {[%clk 0:00:04]} 45. hxg5 {[%clk 0:00:04]}  f4 {[%clk 0:00:04]} 46. Be5 {[%clk 0:00:03]}  e3 {[%clk 0:00:02]} 47. Bxf4 {[%clk 0:00:03]}  exf2 {[%clk 0:00:02]} 48. Rc7+ {[%clk 0:00:03]}  Kg8 {[%clk 0:00:02]} 49. Bg3 {[%clk 0:00:02]}  f1=Q {[%clk 0:00:02]} 50. Rc8+ {[%clk 0:00:00]}  Kf7 {[%clk 0:00:02]} 0-1


[Site "https://www.chess.com"]

[Event "Titled Tuesday Blitz May 9 Early 2023"]
[White "Livaic, Leon"]
[Black "cryptoguru02"]
[WhiteFideId "14531534"]
[WhiteElo "2522"]
[BlackElo "2616"]
[Result "1-0"]
[Round "05"]
[TimeControl "180+2"]
[Date "2023.05.09"]
[WhiteClock "0:00:02"]
[BlackClock "0:00:00"]

1. d4 {[%clk 0:02:59]}  d5 {[%clk 0:02:59]} 2. c4 {[%clk 0:03:00]}  c6 {[%clk 0:03:00]} 3. cxd5 {[%clk 0:03:00]}  cxd5 {[%clk 0:03:00]} 4. Bf4 {[%clk 0:03:01]}  Nc6 {[%clk 0:02:59]} 5. e3 {[%clk 0:03:02]}  Qb6 {[%clk 0:02:56]} 6. Nc3 {[%clk 0:03:00]}  Nf6 {[%clk 0:02:54]} 7. a3 {[%clk 0:02:54]}  Bg4 {[%clk 0:02:47]} 8. Qc2 {[%clk 0:02:42]}  e6 {[%clk 0:02:47]} 9. Bd3 {[%clk 0:02:41]}  Bh5 {[%clk 0:02:45]} 10. Nge2 {[%clk 0:02:39]}  Bg6 {[%clk 0:02:38]} 11. O-O {[%clk 0:02:39]}  Be7 {[%clk 0:02:35]} 12. Na4 {[%clk 0:02:37]}  Qd8 {[%clk 0:02:25]} 13. b4 {[%clk 0:02:32]}  Bxd3 {[%clk 0:02:21]} 14. Qxd3 {[%clk 0:02:33]}  O-O {[%clk 0:02:22]} 15. Rfc1 {[%clk 0:02:31]}  Ne4 {[%clk 0:02:15]} 16. Nec3 {[%clk 0:02:23]}  Nd6 {[%clk 0:02:09]} 17. Bxd6 {[%clk 0:02:19]}  Bxd6 {[%clk 0:02:08]} 18. Nc5 {[%clk 0:02:19]}  Qe7 {[%clk 0:02:03]} 19. Nb5 {[%clk 0:02:16]}  b6 {[%clk 0:01:53]} 20. Nxd6 {[%clk 0:02:14]}  Qxd6 {[%clk 0:01:54]} 21. Na4 {[%clk 0:02:09]}  Rfc8 {[%clk 0:01:47]} 22. Rc2 {[%clk 0:02:06]}  Qd7 {[%clk 0:01:43]} 23. Nc3 {[%clk 0:02:01]}  Nd8 {[%clk 0:01:31]} 24. Rac1 {[%clk 0:02:00]}  Rc4 {[%clk 0:01:08]} 25. Nb1 {[%clk 0:01:58]}  Rxc2 {[%clk 0:01:04]} 26. Qxc2 {[%clk 0:01:59]}  Kf8 {[%clk 0:00:55]} 27. Qxh7 {[%clk 0:01:57]}  Rc8 {[%clk 0:00:52]} 28. Nc3 {[%clk 0:01:49]}  Qa4 {[%clk 0:00:40]} 29. Qh8+ {[%clk 0:01:43]}  Ke7 {[%clk 0:00:40]} 30. Qh4+ {[%clk 0:01:40]}  Kd7 {[%clk 0:00:29]} 31. f3 {[%clk 0:01:17]}  Qxa3 {[%clk 0:00:29]} 32. Qe1 {[%clk 0:01:17]}  Qxb4 {[%clk 0:00:27]} 33. h4 {[%clk 0:01:10]}  Nb7 {[%clk 0:00:25]} 34. e4 {[%clk 0:01:00]}  Qxd4+ {[%clk 0:00:24]} 35. Kh1 {[%clk 0:01:00]}  Nd6 {[%clk 0:00:20]} 36. exd5 {[%clk 0:00:57]}  e5 {[%clk 0:00:20]} 37. Ne4 {[%clk 0:00:37]}  Rxc1 {[%clk 0:00:20]} 38. Qxc1 {[%clk 0:00:38]}  Qxd5 {[%clk 0:00:18]} 39. Ng3 {[%clk 0:00:27]}  g6 {[%clk 0:00:16]} 40. h5 {[%clk 0:00:18]}  gxh5 {[%clk 0:00:15]} 41. Nxh5 {[%clk 0:00:19]}  Qd4 {[%clk 0:00:14]} 42. Nf6+ {[%clk 0:00:17]}  Ke6 {[%clk 0:00:14]} 43. Ng4 {[%clk 0:00:14]}  f5 {[%clk 0:00:12]} 44. Qh6+ {[%clk 0:00:14]}  Kd5 {[%clk 0:00:12]} 45. Nf6+ {[%clk 0:00:13]}  Kc4 {[%clk 0:00:12]} 46. Qc1+ {[%clk 0:00:12]}  Kb5 {[%clk 0:00:12]} 47. Qb1+ {[%clk 0:00:11]}  Kc6 {[%clk 0:00:09]} 48. Qc2+ {[%clk 0:00:10]}  Qc4 {[%clk 0:00:08]} 49. Qf2 {[%clk 0:00:09]}  f4 {[%clk 0:00:07]} 50. Ng4 {[%clk 0:00:08]}  Qd5 {[%clk 0:00:06]} 51. Qc2+ {[%clk 0:00:08]}  Nc4 {[%clk 0:00:06]} 52. Nf6 {[%clk 0:00:05]}  Qe6 {[%clk 0:00:03]} 53. Ne4 {[%clk 0:00:06]}  b5 {[%clk 0:00:02]} 54. Qc3 {[%clk 0:00:05]}  a6 {[%clk 0:00:03]} 55. Qd3 {[%clk 0:00:06]}  Qd5 {[%clk 0:00:03]} 56. Qc3 {[%clk 0:00:05]}  Qd4 {[%clk 0:00:04]} 57. Qb4 {[%clk 0:00:05]}  Qa1+ {[%clk 0:00:03]} 58. Kh2 {[%clk 0:00:05]}  Qd4 {[%clk 0:00:04]} 59. Qe7 {[%clk 0:00:05]}  Ne3 {[%clk 0:00:04]} 60. Qe8+ {[%clk 0:00:02]}  Kc7 {[%clk 0:00:04]} 61. Qe7+ {[%clk 0:00:02]}  Kc6 {[%clk 0:00:05]} 62. Qe8+ {[%clk 0:00:03]}  Kb7 {[%clk 0:00:05]} 63. Qf7+ {[%clk 0:00:03]}  Kb6 {[%clk 0:00:05]} 64. Qe6+ {[%clk 0:00:03]}  Ka5 {[%clk 0:00:05]} 65. Qa2+ {[%clk 0:00:03]}  Kb6 {[%clk 0:00:05]} 66. Qe6+ {[%clk 0:00:04]}  Ka5 {[%clk 0:00:05]} 67. Nd6 {[%clk 0:00:05]}  Nf1+ {[%clk 0:00:05]} 68. Kh3 {[%clk 0:00:06]}  Qg1 {[%clk 0:00:05]} 69. Qa2+ {[%clk 0:00:06]}  Kb4 {[%clk 0:00:05]} 70. Qb2+ {[%clk 0:00:05]}  Kc5 {[%clk 0:00:05]} 71. Qxe5+ {[%clk 0:00:06]}  Kc6 {[%clk 0:00:06]} 72. Ne4 {[%clk 0:00:04]}  Qh2+ {[%clk 0:00:06]} 73. Kg4 {[%clk 0:00:05]}  Ne3+ {[%clk 0:00:05]} 74. Kg5 {[%clk 0:00:05]}  Qxg2+ {[%clk 0:00:05]} 75. Kf6 {[%clk 0:00:06]}  Nd5+ {[%clk 0:00:05]} 76. Kf7 {[%clk 0:00:06]}  Qxf3 {[%clk 0:00:05]} 77. Qd6+ {[%clk 0:00:06]}  Kb7 {[%clk 0:00:05]} 78. Qxd5+ {[%clk 0:00:07]}  Kb6 {[%clk 0:00:06]} 79. Qc5+ {[%clk 0:00:07]}  Ka5 {[%clk 0:00:06]} 80. Qc7+ {[%clk 0:00:06]}  Kb4 {[%clk 0:00:03]} 81. Qd6+ {[%clk 0:00:05]}  Ka5 {[%clk 0:00:03]} 82. Qd2+ {[%clk 0:00:06]}  Kb6 {[%clk 0:00:02]} 83. Qd4+ {[%clk 0:00:06]}  Ka5 {[%clk 0:00:03]} 84. Nd6 {[%clk 0:00:06]}  Qb3+ {[%clk 0:00:02]} 85. Ke7 {[%clk 0:00:06]}  Qb4 {[%clk 0:00:02]} 86. Qa1+ {[%clk 0:00:04]}  Kb6 {[%clk 0:00:02]} 87. Qg1+ {[%clk 0:00:03]}  Qc5 {[%clk 0:00:00]} 88. Qg8 {[%clk 0:00:02]} 1-0


[Site "https://www.chess.com"]

[Event "Titled Tuesday Blitz May 9 Early 2023"]
[White "Veiga, Jose Francisco R P Neves"]
[Black "Bacrot, Etienne"]
[WhiteFideId "1930087"]
[BlackFideId "605506"]
[WhiteElo "2320"]
[BlackElo "2672"]
[Result "1-0"]
[Round "05"]
[TimeControl "180+2"]
[Date "2023.05.09"]
[WhiteClock "0:00:38"]
[BlackClock "0:00:02"]

1. e4 {[%clk 0:03:00]}  c5 {[%clk 0:02:59]} 2. Nf3 {[%clk 0:03:00]}  d6 {[%clk 0:03:00]} 3. Bb5+ {[%clk 0:02:58]}  Bd7 {[%clk 0:02:59]} 4. Bxd7+ {[%clk 0:02:58]}  Qxd7 {[%clk 0:03:00]} 5. O-O {[%clk 0:02:58]}  Nf6 {[%clk 0:03:00]} 6. d3 {[%clk 0:02:54]}  Nc6 {[%clk 0:03:00]} 7. c4 {[%clk 0:02:53]}  g6 {[%clk 0:03:00]} 8. Nc3 {[%clk 0:02:53]}  Bg7 {[%clk 0:03:00]} 9. h3 {[%clk 0:02:49]}  O-O {[%clk 0:03:00]} 10. Re1 {[%clk 0:02:47]}  Ne8 {[%clk 0:02:54]} 11. Be3 {[%clk 0:02:43]}  Rc8 {[%clk 0:02:45]} 12. Rc1 {[%clk 0:02:34]}  e5 {[%clk 0:02:34]} 13. Nd5 {[%clk 0:02:32]}  Nc7 {[%clk 0:02:27]} 14. Qa4 {[%clk 0:02:18]}  f5 {[%clk 0:02:13]} 15. b4 {[%clk 0:01:55]}  fxe4 {[%clk 0:01:30]} 16. dxe4 {[%clk 0:01:54]}  Ne6 {[%clk 0:00:54]} 17. bxc5 {[%clk 0:01:46]}  dxc5 {[%clk 0:00:53]} 18. Red1 {[%clk 0:01:29]}  Ned4 {[%clk 0:00:47]} 19. Bxd4 {[%clk 0:01:24]}  exd4 {[%clk 0:00:48]} 20. Ne1 {[%clk 0:01:20]}  Rce8 {[%clk 0:00:39]} 21. Nd3 {[%clk 0:01:19]}  Qd6 {[%clk 0:00:34]} 22. Re1 {[%clk 0:01:15]}  b6 {[%clk 0:00:29]} 23. f4 {[%clk 0:01:14]}  Kh8 {[%clk 0:00:24]} 24. e5 {[%clk 0:01:13]}  Qe6 {[%clk 0:00:23]} 25. Rf1 {[%clk 0:01:05]}  Rf7 {[%clk 0:00:20]} 26. Rce1 {[%clk 0:01:02]}  Ref8 {[%clk 0:00:20]} 27. Nf2 {[%clk 0:00:51]}  Nd8 {[%clk 0:00:12]} 28. Ne4 {[%clk 0:00:48]}  h6 {[%clk 0:00:12]} 29. Nd6 {[%clk 0:00:48]}  Rd7 {[%clk 0:00:12]} 30. f5 {[%clk 0:00:39]}  gxf5 {[%clk 0:00:11]} 31. Nf4 {[%clk 0:00:39]}  Qg8 {[%clk 0:00:02]} 32. Qxd7 {[%clk 0:00:38]} 1-0


[Site "https://www.chess.com"]